bitfinex/quotes_SOLUSD_20220114
["timestamp","ask_amount","ask_price","bid_price","bid_amount"]
[1642188536971,2.697,148.37,148.33,9.86]
[1642188537171,3.70512907,148.38,148.33,11.56077588]
[1642188537371,3.70512907,148.38,148.33,17.56077588]
[1642188537776,3.70512907,148.38,148.33,11.56077588]
[1642188537972,23.70198214,148.41,148.33,10.11]
[1642188538173,23.70198214,148.41,148.33,9.86]
[1642188538174,26.39698214,148.41,148.33,9.86]
[1642188539396,26.39698214,148.41,148.33,10.11]
[1642188539996,1.85385664,148.4,148.33,10.11]
[1642188540397,1.85385664,148.4,148.33,20.2209]
[1642188540696,1.85385664,148.4,148.34,2.696]
[1642188540896,1.85385664,148.4,148.33,20.2209]
[1642188541595,1.85385664,148.4,148.33,19.9709]
[1642188542495,1.85385664,148.41,148.33,87.9809]
[1642188542795,1.85385664,148.41,148.33,29.36967588]
[1642188542994,1.85385664,148.41,148.33,27.6689]
[1642188543595,1.85385664,148.41,148.37,10.1079]
[1642188543798,1.85385664,148.41,148.37,18.5389]
[1642188543999,25.31955664,148.43,148.37,18.7889]
[1642188545698,1.85385664,148.43,148.37,18.7889]
[1642188546098,1.85385664,148.43,148.37,28.6489]
[1642188546912,1.85385664,148.44,148.37,28.6489]
[1642188549511,1.85385664,148.44,148.38,2.695]
[1642188549712,1.85385664,148.45,148.39,10.1066]
[1642188551013,1.85385664,148.44,148.39,10.1066]
[1642188551212,1.85385664,148.44,148.39,10.3566]
[1642188551715,33.44904453,148.44,148.39,10.3566]
[1642188553616,33.44904453,148.44,148.39,0.25]
[1642188554214,33.44904453,148.44,148.37,12.804]
[1642188554418,33.44904453,148.44,148.37,10.11]
[1642188554615,1.85385664,148.43,148.37,10.11]
[1642188555115,1.85385664,148.43,148.37,11.81077588]
[1642188555515,1.85385664,148.44,148.37,11.81077588]
[1642188555716,1.85385664,148.44,148.38,2.695]
[1642188556016,1.85385664,148.44,148.4,10.106]
[1642188556215,1.85385664,148.44,148.4,15.733]
[1642188556620,1.85385664,148.44,148.4,15.983]
[1642188556818,1.85385664,148.45,148.4,15.983]
[1642188558417,1.85385664,148.45,148.4,25.843]
[1642188558615,1.85385664,148.45,148.4,27.54377588]
[1642188559319,1.85385664,148.47,148.4,95.55377588]
[1642188560017,1.85385664,148.47,148.4,101.55377588]
[1642188560216,1.85385664,148.47,148.4,95.55377588]
[1642188560416,1.85385664,148.48,148.4,95.55377588]
[1642188560616,1.85385664,148.48,148.41,2.694]
[1642188560816,1.85385664,148.48,148.44,10.1031]
[1642188561018,1.85385664,148.48,148.44,18.2741]
[1642188561821,1.85385664,148.48,148.46,10.101]
[1642188562018,1.85385664,148.48,148.46,20.211]
[1642188562421,1.85385664,148.48,148.47,4.56439993]
[1642188562622,1.85385664,148.5,148.47,4.56439993]
[1642188562823,1.85385664,148.5,148.47,10.76439993]
[1642188563025,1.85385664,148.5,148.47,10.51439993]
[1642188563224,1.50000001,148.49,148.47,10.51439993]
[1642188563423,1.50000001,148.49,148.44,9.86]
[1642188563628,2.693,148.48,148.44,9.86]
[1642188564027,2.694,148.49,148.44,9.86]
[1642188564427,24.80368861,148.48,148.41,11.7827896]
[1642188564626,2.694,148.47,148.41,11.7827896]
[1642188564825,1.85385664,148.46,148.41,9.86]
[1642188565055,2.694,148.45,148.41,10.11]
[1642188565255,1.85385664,148.46,148.41,9.86]
[1642188566556,1.85385664,148.46,148.41,10.11]
[1642188567357,1.85385664,148.46,148.41,20.2155]
[1642188568758,1.85385664,148.46,148.41,21.91627588]
[1642188568958,1.85385664,148.46,148.41,20.2155]
[1642188570161,1.85385664,148.48,148.41,20.2155]
[1642188570361,1.85385664,148.48,148.42,2.694]
[1642188570560,1.85385664,148.48,148.42,13.0484]
[1642188571663,1.85385664,148.48,148.42,18.7094]
[1642188571863,1.85385664,148.48,148.42,30.27017588]
[1642188572066,1.85385664,148.48,148.42,27.57617588]
[1642188573464,1.85385664,148.48,148.42,25.8754]
[1642188574065,1.85385664,148.48,148.42,15.771]
[1642188574265,1.85385664,148.48,148.42,10.11]
[1642188574467,24.43507305,148.46,148.42,9.86]
[1642188574668,24.43507305,148.46,148.4,2.694]
[1642188574867,2.694,148.45,148.4,2.694]
[1642188575065,2.944,148.45,148.4,2.694]
[1642188575265,4.79785664,148.45,148.4,2.694]
[1642188575464,4.79785664,148.45,148.35,11.7827896]
[1642188575665,29.16755664,148.45,148.36,10.1083]
[1642188575867,29.16755664,148.45,148.35,11.7827896]
[1642188576465,1.85385664,148.42,148.35,10.11]
[1642188576666,2.695,148.41,148.35,10.11]
[1642188577467,2.945,148.41,148.35,9.86]
[1642188577667,2.945,148.41,148.33,1.9227896]
[1642188578466,1.85385664,148.4,148.32,9.86]
[1642188578670,2.696,148.39,148.32,25.45140296]
[1642188578870,2.696,148.39,148.32,35.81240296]
[1642188579281,4.54985664,148.39,148.32,35.81240296]
[1642188579470,1.85385664,148.39,148.32,35.81240296]
[1642188581884,1.85385664,148.39,148.32,37.51317884]
[1642188582681,25.11883296,148.4,148.32,21.92177588]
[1642188582883,25.11883296,148.4,148.32,11.81077588]
[1642188583082,25.11883296,148.4,148.32,10.11]
[1642188583284,25.36883296,148.4,148.32,0.25]
[1642188583482,25.36883296,148.4,148.31,2.946]
[1642188583712,93.37883296,148.4,148.31,2.946]
[1642188584082,103.49193296,148.4,148.31,2.946]
[1642188584884,1.85385664,148.38,148.31,2.946]
[1642188587288,10.114,148.39,148.31,2.946]
[1642188587498,12.81,148.39,148.31,2.946]
[1642188587885,12.81,148.39,148.32,4.91044817]
[1642188588086,2.696,148.41,148.32,6.86122405]
[1642188588287,3.7638689,148.45,148.33,9.86]
[1642188588486,9.7638689,148.45,148.33,11.81077588]
[1642188588686,3.7638689,148.45,148.33,10.11]
[1642188588986,40.09491427,148.45,148.33,10.11]
[1642188589186,63.92901427,148.45,148.33,10.11]
[1642188589487,74.28941427,148.45,148.34,1.70077588]
[1642188589686,74.28941427,148.45,148.35,11.87160571]
[1642188590098,74.28941427,148.45,148.35,12.12160571]
[1642188590495,43.7083689,148.45,148.35,14.81660571]
[1642188590795,41.0123689,148.45,148.35,22.92960571]
[1642188590998,29.8341,148.45,148.35,33.03910571]
[1642188592025,55.90650232,148.45,148.35,33.03910571]
[1642188592830,29.8341,148.45,148.35,33.03910571]
[1642188593428,29.8341,148.45,148.35,44.59988159]
[1642188593828,23.8341,148.45,148.35,44.59988159]
[1642188594028,23.0592,148.47,148.35,50.59988159]
[1642188595328,50.79781019,148.47,148.35,44.59988159]
[1642188595536,50.79781019,148.47,148.35,50.59988159]
[1642188597631,50.79781019,148.47,148.35,34.53610571]
[1642188597831,2.695,148.46,148.35,34.53610571]
[1642188598035,2.945,148.46,148.35,34.53610571]
[1642188598637,10.1099,148.45,148.35,12.555]
[1642188598835,70.705,148.44,148.35,2.695]
[1642188599035,74.26,148.44,148.35,2.695]
[1642188599235,2.695,148.43,148.35,2.695]
[1642188599435,2.945,148.43,148.32,9.86]
[1642188599639,23.03215076,148.42,148.32,9.86]
[1642188599836,2.695,148.41,148.32,9.86]
[1642188600039,2.945,148.41,148.32,9.86]
[1642188600436,2.945,148.41,148.32,10.11]
[1642188601537,13.0576,148.41,148.32,10.11]
[1642188601951,19.0576,148.41,148.31,2.695]
[1642188602140,20.75837588,148.41,148.28,9.86]
[1642188603340,19.0576,148.41,148.28,9.86]
[1642188603939,538.05907778,148.41,148.28,9.86]
[1642188604340,538.05907778,148.41,148.26,2.696]
[1642188604641,10.1167,148.35,148.26,2.696]
[1642188605444,24.85254821,148.34,148.26,2.696]
[1642188605641,24.85254821,148.34,148.27,1.9227896]
[1642188605844,34.97004821,148.34,148.27,1.9227896]
[1642188606042,102.98004821,148.34,148.27,1.9227896]
[1642188606242,35.22004821,148.34,148.27,1.9227896]
[1642188607242,4.55085664,148.33,148.24,1.9227896]
[1642188607441,14.91925664,148.33,148.24,1.9227896]
[1642188608241,14.91925664,148.33,148.23,1.9227896]
[1642188609243,30.46115999,148.31,148.23,1.9227896]
[1642188609444,30.46115999,148.31,148.23,2.1727896]
[1642188609445,30.71115999,148.31,148.23,2.1727896]
[1642188610846,28.60135664,148.33,148.23,12.2904896]
[1642188611050,25.90435664,148.33,148.24,2.697]
[1642188611446,25.90435664,148.33,148.24,2.947]
[1642188611846,51.69370824,148.33,148.24,2.947]
[1642188612046,49.8398516,148.33,148.25,1.9227896]
[1642188612447,49.8398516,148.33,148.25,12.2890896]
[1642188612847,49.8398516,148.33,148.25,25.71809837]
[1642188613950,49.8398516,148.33,148.25,12.2890896]
[1642188614150,49.8398516,148.33,148.27,1.9227896]
[1642188614549,49.8398516,148.33,148.27,2.1727896]
[1642188614949,49.8398516,148.33,148.28,2.697]
[1642188615149,25.46165664,148.35,148.28,2.697]
[1642188615350,25.46165664,148.35,148.28,2.947]
[1642188615751,25.46165664,148.35,148.28,0.25]
[1642188616051,23.6078,148.35,148.28,0.25]
[1642188616251,48.95640581,148.35,148.28,0.25]
[1642188616552,48.95640581,148.35,148.27,14.9836896]
[1642188618878,23.6078,148.35,148.27,12.2876896]
[1642188619076,1.85385664,148.36,148.27,22.1476896]
[1642188619276,1.85385664,148.36,148.27,28.3606896]
[1642188619476,1.85385664,148.36,148.31,10.1123]
[1642188619676,1.85385664,148.36,148.31,17.0963]
[1642188619877,1.85385664,148.36,148.31,7.234]
[1642188620079,1.85385664,148.37,148.31,7.234]
[1642188621180,30.10285051,148.38,148.31,0.25]
[1642188621678,30.10285051,148.38,148.29,20.2232]
[1642188621880,30.10285051,148.38,148.29,22.9192]
[1642188622080,1.85385664,148.37,148.29,22.9192]
[1642188625292,1.85385664,148.38,148.29,22.9192]
[1642188625491,1.85385664,148.38,148.29,24.8419896]
[1642188625888,29.9743925,148.37,148.29,24.8419896]
[1642188626091,29.9743925,148.37,148.3,1.9227896]
[1642188626287,29.9743925,148.37,148.31,9.86]
[1642188626489,29.9743925,148.37,148.31,10.11]
[1642188627291,1.85385664,148.38,148.31,10.11]
[1642188629792,29.19096874,148.39,148.31,10.11]
[1642188630192,1.85385664,148.39,148.31,21.41591473]
[1642188630391,1.85385664,148.39,148.31,27.04891473]
[1642188631694,1.85385664,148.39,148.35,10.1095]
[1642188631892,1.85385664,148.39,148.35,15.6225]
[1642188632092,1.85385664,148.39,148.35,15.8725]
[1642188632798,1.85385664,148.41,148.35,15.8725]
[1642188636603,50.26635664,148.42,148.35,15.8725]
[1642188637404,1.85385664,148.42,148.35,15.8725]
[1642188637605,1.85385664,148.42,148.36,9.86]
[1642188637805,1.85385664,148.42,148.39,10.1061]
[1642188638004,1.85385664,148.42,148.39,17.6891]
[1642188638406,2.20970433,148.42,148.4,7.62947603]
[1642188638605,0.35584769,148.42,148.4,7.62947603]
[1642188638805,0.35584769,148.42,148.4,7.87947603]
[1642188639605,0.35584769,148.42,148.4,17.98557603]
[1642188642507,0.35584769,148.42,148.4,4.81439993]
[1642188643010,0.35584769,148.42,148.4,4.56439993]
[1642188643208,1.50000001,148.41,148.4,3.03219997]
[1642188643409,1.50000001,148.41,148.37,2.695]
[1642188643610,1.50000001,148.41,148.37,12.555]
[1642188643839,0.35584769,148.42,148.37,12.555]
[1642188645037,0.35584769,148.42,148.37,2.695]
[1642188645939,2.20970433,148.42,148.37,2.695]
[1642188646139,2.20970433,148.42,148.34,2.695]
[1642188646340,2.20970433,148.42,148.35,15.36329063]
[1642188646541,2.20970433,148.42,148.35,15.61329063]
[1642188647342,2.20970433,148.42,148.36,10.1086]
[1642188647542,2.20970433,148.42,148.36,10.3586]
[1642188648143,2.20970433,148.42,148.36,0.25]
[1642188648745,2.20970433,148.42,148.35,0.25]
[1642188648945,2.20970433,148.42,148.34,13.0545]
[1642188649145,2.20970433,148.42,148.34,2.945]
[1642188649848,2.20970433,148.42,148.35,16.75908855]
[1642188650047,2.20970433,148.42,148.35,27.11848855]
[1642188657560,2.20970433,148.42,148.35,17.00908855]
[1642188657958,2.20970433,148.42,148.35,0.25]
[1642188658158,2.20970433,148.42,148.34,2.945]
[1642188658356,2.20970433,148.42,148.34,12.805]
[1642188658956,25.68320433,148.42,148.34,12.805]
[1642188659159,1.85385664,148.41,148.34,12.555]
[1642188659357,24.74998628,148.4,148.34,12.555]
[1642188660165,36.71524292,148.4,148.34,12.555]
[1642188660962,1.85385664,148.39,148.34,12.555]
[1642188661164,10.1128,148.38,148.34,12.555]
[1642188661361,10.1128,148.38,148.31,2.696]
[1642188661661,1.85385664,148.39,148.31,2.696]
[1642188661861,1.85385664,148.39,148.31,8.651]
[1642188662061,1.85385664,148.39,148.32,9.86]
[1642188662264,1.85385664,148.39,148.33,12.8053]
[1642188662563,1.85385664,148.39,148.34,14.78728793]
[1642188662766,1.85385664,148.39,148.34,20.93428793]
[1642188663062,1.85385664,148.39,148.34,21.18428793]
[1642188663364,1.85385664,148.4,148.34,21.18428793]
[1642188663965,1.85385664,148.4,148.34,10.1086]
[1642188664163,1.85385664,148.4,148.34,0.25]
[1642188664564,2.695,148.41,148.33,1.9227896]
[1642188664966,2.945,148.41,148.33,1.9227896]
[1642188665164,2.695,148.41,148.33,1.9227896]
[1642188665564,2.945,148.41,148.33,1.9227896]
[1642188665765,4.54885664,148.41,148.32,11.7827896]
[1642188665966,4.54885664,148.41,148.32,12.0327896]
[1642188666869,1.85385664,148.4,148.32,10.11]
[1642188667070,1.85385664,148.4,148.33,2.696]
[1642188667273,1.85385664,148.4,148.33,22.6655]
[1642188667469,1.85385664,148.4,148.33,22.9155]
[1642188667672,2.20970433,148.42,148.33,90.1522896]
[1642188667876,2.20970433,148.42,148.34,2.695]
[1642188668072,2.20970433,148.42,148.35,9.86]
[1642188668270,2.20970433,148.42,148.36,2.695]
[1642188668471,2.20970433,148.42,148.36,12.805]
[1642188668873,0.35584769,148.42,148.36,12.805]
[1642188669072,0.35584769,148.42,148.37,2.81854213]
[1642188669471,0.35584769,148.42,148.37,13.17504213]
[1642188670577,0.35584769,148.42,148.37,18.83904213]
[1642188670774,0.35584769,148.42,148.4,10.1048]
[1642188670972,0.35584769,148.42,148.41,7.25939993]
[1642188671175,0.35584769,148.42,148.41,4.56439993]
[1642188671372,0.35584769,148.42,148.41,4.81439993]
[1642188672074,1.85385664,148.44,148.42,31.0]
[1642188672273,1.85385664,148.44,148.42,9.86]
[1642188672473,1.85385664,148.44,148.43,14.66669993]
[1642188672875,1.85385664,148.47,148.43,14.91669993]
[1642188673078,1.85385664,148.47,148.44,13.96351175]
[1642188673275,1.50000001,148.46,148.44,13.96351175]
[1642188673475,1.50000001,148.46,148.44,14.21351175]
[1642188673676,1.85385664,148.47,148.45,4.56439993]
[1642188674076,1.85385664,148.47,148.45,4.81439993]
[1642188674277,1.85385664,148.49,148.45,4.81439993]
[1642188676376,1.85385664,148.49,148.45,4.56439993]
[1642188676576,1.85385664,148.49,148.45,4.81439993]
[1642188677376,1.85385664,148.5,148.45,4.81439993]
[1642188678580,1.85385664,148.5,148.43,2.694]
[1642188678781,2.194,148.49,148.43,12.554]
[1642188678982,2.444,148.49,148.43,9.86]
[1642188679181,2.444,148.49,148.41,1.9227896]
[1642188679681,2.194,148.49,148.4,23.97429532]
[1642188679881,1.85385664,148.5,148.41,2.694]
[1642188679882,1.85385664,148.47,148.41,2.694]
[1642188680083,1.85385664,148.47,148.41,2.944]
[1642188680684,1.85385664,148.47,148.41,13.0481]
[1642188680883,1.85385664,148.49,148.41,13.0481]
[1642188681985,1.85385664,148.48,148.41,13.0481]
[1642188683088,1.85385664,148.49,148.42,9.86]
[1642188683290,1.85385664,148.49,148.42,19.9632]
[1642188683487,1.85385664,148.49,148.42,20.2132]
[1642188683687,1.35385664,148.49,148.42,20.2132]
[1642188684486,1.35385664,148.49,148.42,26.2132]
[1642188684689,1.35385664,148.49,148.42,20.2132]
[1642188685006,1.35385664,148.49,148.42,27.91397588]
[1642188685208,1.35385664,148.49,148.43,68.01]
[1642188685408,1.35385664,148.49,148.45,10.1012]
[1642188685608,1.35385664,148.49,148.45,19.9612]
[1642188685910,24.2018,148.53,148.46,5.36175856]
[1642188686510,2.693,148.52,148.46,2.66775856]
[1642188686710,2.693,148.52,148.45,9.86]
[1642188687508,2.943,148.52,148.45,9.86]
[1642188688110,22.86857374,148.51,148.45,10.11]
[1642188688309,32.97247374,148.51,148.45,10.11]
[1642188689909,33.22247374,148.51,148.45,9.86]
[1642188690111,10.3539,148.51,148.45,9.86]
[1642188690310,41.18346284,148.5,148.45,9.86]
[1642188690515,41.43346284,148.5,148.45,9.86]
[1642188690711,41.43346284,148.5,148.41,12.553]
[1642188691915,41.43346284,148.5,148.41,10.11]
[1642188692215,41.18346284,148.5,148.41,10.11]
[1642188692416,41.43346284,148.5,148.41,10.11]
[1642188693617,41.18346284,148.5,148.41,10.11]
[1642188694015,45.13859191,148.5,148.41,10.11]
[1642188694215,33.693,148.49,148.41,10.11]
[1642188695315,10.1075,148.46,148.41,9.86]
[1642188695514,10.1075,148.46,148.37,9.86]
[1642188695717,26.1385,148.45,148.37,9.86]
[1642188696015,23.4435,148.45,148.37,12.555]
[1642188696216,23.4435,148.45,148.37,9.86]
[1642188696517,23.4435,148.45,148.37,10.11]
[1642188697318,33.5516,148.45,148.37,10.11]
[1642188698317,33.8016,148.45,148.37,10.11]
[1642188698520,2.695,148.44,148.37,9.86]
[1642188698720,10.1098,148.43,148.37,9.86]
[1642188699321,10.1098,148.43,148.37,24.15385839]
[1642188699719,2.695,148.44,148.37,24.15385839]
[1642188699922,36.4968,148.45,148.37,24.40385839]
[1642188700120,33.8018,148.45,148.37,24.40385839]
[1642188701223,23.4435,148.45,148.38,2.695]
[1642188701422,2.695,148.47,148.39,9.86]
[1642188701622,28.60262907,148.48,148.4,2.694]
[1642188701822,28.60262907,148.48,148.4,20.284]
[1642188702023,3.70512907,148.48,148.4,22.23477588]
[1642188702223,3.70512907,148.5,148.4,22.23477588]
[1642188702426,13.80962907,148.5,148.4,30.6389]
[1642188702922,13.80962907,148.5,148.4,32.33967588]
[1642188703323,10.1045,148.5,148.4,30.6389]
[1642188706124,10.3545,148.5,148.4,20.534]
[1642188706524,16.3545,148.5,148.4,20.534]
[1642188706723,10.3545,148.5,148.4,20.534]
[1642188706924,2.694,148.49,148.4,17.84]
[1642188707125,10.1067,148.47,148.4,10.11]
[1642188708326,35.5218,148.49,148.4,10.11]
[1642188708525,35.7718,148.49,148.4,18.916]
[1642188708729,39.47692907,148.49,148.4,18.916]
[1642188708930,36.78292907,148.49,148.4,18.916]
[1642188709727,33.0778,148.49,148.4,18.916]
[1642188710829,33.0778,148.49,148.4,10.11]
[1642188711031,10.1076,148.46,148.4,10.11]
[1642188712331,12.8002,148.48,148.4,10.11]
[1642188712539,13.0502,148.48,148.4,10.11]
[1642188714635,12.8002,148.48,148.4,10.11]
[1642188714836,2.694,148.48,148.4,16.317]
[1642188715035,26.42722907,148.49,148.4,16.317]
[1642188715836,36.53242907,148.49,148.4,26.4222]
[1642188716036,36.53242907,148.49,148.4,20.2152]
[1642188716235,32.8273,148.49,148.4,20.2152]
[1642188716440,33.0773,148.49,148.4,10.11]
[1642188717236,2.694,148.48,148.4,10.11]
[1642188717537,10.1066,148.47,148.4,10.11]
[1642188717936,10.3566,148.47,148.4,9.86]
[1642188718136,10.3566,148.47,148.38,2.694]
[1642188718341,26.0503,148.46,148.35,12.554]
[1642188718540,10.1094,148.43,148.35,12.554]
[1642188719140,38.07396471,148.43,148.35,12.554]
[1642188719538,38.07396471,148.43,148.35,12.804]
[1642188720739,38.07396471,148.43,148.35,12.554]
[1642188721141,10.1107,148.41,148.35,9.86]
[1642188722139,10.1107,148.41,148.32,2.695]
[1642188722339,10.1143,148.36,148.3,3.84725988]
[1642188723539,10.1143,148.36,148.3,0.25]
[1642188723938,10.1143,148.36,148.28,9.86]
[1642188723939,10.3643,148.36,148.28,9.86]
[1642188724141,10.3643,148.36,148.27,6.54325988]
[1642188724339,10.1164,148.33,148.27,6.54325988]
[1642188724540,10.3664,148.33,148.27,6.54325988]
[1642188724741,23.55688972,148.31,148.27,6.54325988]
[1642188725644,10.1183,148.3,148.27,2.696]
[1642188726043,1.50000001,148.29,148.27,2.696]
[1642188726273,1.50000001,148.29,148.24,3.84725988]
[1642188726443,1.50000001,148.29,148.24,2.947]
[1642188727244,1.50000001,148.29,148.24,2.697]
[1642188727844,1.50000001,148.29,148.23,12.557]
[1642188728445,1.50000001,148.29,148.23,12.807]
[1642188729546,1.50000001,148.29,148.23,22.924]
[1642188729945,1.50000001,148.29,148.23,30.62477588]
[1642188730153,2.697,148.34,148.23,30.62477588]
[1642188730351,6.40212907,148.37,148.24,68.01]
[1642188730552,34.53520822,148.37,148.26,2.99591456]
[1642188730751,34.53520822,148.37,148.27,9.86]
[1642188730952,34.53520822,148.37,148.27,11.81077588]
[1642188731352,50.64910822,148.37,148.28,10.113]
[1642188731554,50.64910822,148.37,148.28,10.363]
[1642188731960,46.94397915,148.37,148.28,10.363]
[1642188732155,46.94397915,148.37,148.28,0.25]
[1642188732556,10.1152,148.35,148.28,0.25]
[1642188732757,10.1152,148.35,148.27,10.11]
[1642188732956,16.1152,148.35,148.27,10.11]
[1642188735083,16.3652,148.35,148.27,10.11]
[1642188737788,6.25,148.35,148.27,10.11]
[1642188737990,33.5857,148.36,148.27,10.11]
[1642188738188,30.8897,148.36,148.27,10.11]
[1642188739290,30.8897,148.36,148.28,2.696]
[1642188739492,30.8897,148.36,148.28,12.806]
[1642188740089,30.8897,148.36,148.28,12.556]
[1642188740290,12.8085,148.39,148.28,12.556]
[1642188740491,28.56942907,148.41,148.28,38.40587588]
[1642188740890,24.8643,148.41,148.28,38.40587588]
[1642188741091,24.8643,148.41,148.29,68.01]
[1642188741293,27.5603,148.41,148.3,11.30300589]
[1642188741491,27.5603,148.41,148.33,10.11]
[1642188741692,24.8643,148.41,148.33,10.11]
[1642188741892,24.8643,148.41,148.33,13.055]
[1642188742591,24.8643,148.41,148.33,2.945]
[1642188742592,25.1143,148.41,148.33,2.945]
[1642188742992,2.695,148.4,148.33,0.25]
[1642188743292,27.8103,148.41,148.33,0.25]
[1642188743493,27.8103,148.41,148.32,10.11]
[1642188744296,37.9209,148.41,148.32,20.2209]
[1642188745195,2.696,148.41,148.32,20.2209]
[1642188745396,2.696,148.41,148.32,26.2209]
[1642188745794,2.696,148.41,148.32,20.2209]
[1642188746203,23.1163,148.42,148.32,20.2209]
[1642188746596,33.4762,148.42,148.32,20.2209]
[1642188746796,41.17697588,148.42,148.32,10.11]
[1642188746996,2.695,148.41,148.32,9.86]
[1642188747397,10.64577588,148.41,148.32,9.86]
[1642188747997,10.64577588,148.41,148.3,2.695]
[1642188748198,24.1577,148.4,148.3,0.25]
[1642188748397,10.113,148.38,148.3,0.25]
[1642188748598,23.2997,148.37,148.3,0.25]
[1642188749398,23.2997,148.37,148.28,25.48967565]
[1642188750302,23.2997,148.37,148.29,10.113]
[1642188750604,23.2997,148.37,148.29,20.223]
[1642188751699,23.2997,148.37,148.29,22.919]
[1642188752599,57.16832985,148.37,148.29,22.919]
[1642188752803,57.16832985,148.37,148.29,12.806]
[1642188753808,57.16832985,148.37,148.29,12.556]
[1642188754002,63.41832985,148.37,148.29,2.696]
[1642188754203,66.11432985,148.37,148.27,26.7828]
[1642188755204,66.11432985,148.37,148.27,2.696]
[1642188756507,66.11432985,148.37,148.27,2.946]
[1642188757609,66.11432985,148.37,148.27,0.25]
[1642188757806,68.01,148.36,148.26,9.86]
[1642188758010,10.1175,148.31,148.22,22.6732]
[1642188758208,10.1175,148.31,148.22,19.9772]
[1642188758410,10.3675,148.31,148.22,19.9772]
[1642188758813,35.56686174,148.31,148.22,19.9772]
[1642188759607,35.56686174,148.31,148.22,20.2272]
[1642188761513,35.56686174,148.31,148.22,20.2672]
[1642188762313,35.56686174,148.31,148.22,10.15]
[1642188762513,41.56686174,148.31,148.22,10.15]
[1642188762913,2.697,148.3,148.22,10.15]
[1642188763315,31.674,148.3,148.22,10.15]
[1642188764412,28.727,148.3,148.22,10.15]
[1642188764613,6.0,148.3,148.23,2.697]
[1642188765015,6.0,148.33,148.23,2.947]
[1642188765219,24.1554,148.33,148.23,2.947]
[1642188765414,49.94491078,148.33,148.23,2.947]
[1642188765615,55.94491078,148.33,148.23,2.947]
[1642188765817,56.19491078,148.33,148.23,2.947]
[1642188766416,56.19491078,148.33,148.25,10.1162]
[1642188766816,56.19491078,148.33,148.25,0.25]
[1642188767018,55.94491078,148.33,148.25,0.25]
[1642188767818,49.94491078,148.33,148.25,0.25]
[1642188768117,49.94491078,148.33,148.24,4.33503443]
[1642188768323,49.94491078,148.33,148.25,2.697]
[1642188768518,49.94491078,148.33,148.25,13.063]
[1642188768918,50.19491078,148.33,148.25,10.366]
[1642188770021,58.89191078,148.33,148.25,0.25]
[1642188770220,58.89191078,148.33,148.24,2.697]
[1642188771332,69.01031078,148.33,148.24,2.697]
[1642188771523,137.02031078,148.33,148.24,2.947]
[1642188772824,137.02031078,148.33,148.24,0.25]
[1642188773025,137.02031078,148.33,148.22,28.71716505]
[1642188773724,137.02031078,148.33,148.22,12.807]
[1642188774831,137.02031078,148.33,148.22,22.9253]
[1642188776757,137.02031078,148.33,148.22,22.9653]
[1642188777558,58.89191078,148.33,148.22,22.9653]
[1642188777757,58.89191078,148.33,148.22,47.9027]
[1642188778059,52.89191078,148.33,148.22,47.9027]
[1642188780659,58.89191078,148.33,148.22,47.9027]
[1642188780859,58.89191078,148.33,148.22,37.7844]
[1642188781262,58.89191078,148.33,148.22,37.5344]
[1642188781661,58.89191078,148.33,148.22,12.597]
[1642188781861,60.59268666,148.33,148.22,9.9]
[1642188782464,70.71108666,148.33,148.22,9.9]
[1642188783065,70.71108666,148.33,148.22,10.15]
[1642188783265,70.71108666,148.33,148.22,9.9]
[1642188783467,10.1211,148.29,148.22,0.04]
[1642188783667,78.1311,148.29,148.22,0.04]
[1642188783869,2.698,148.28,148.22,0.04]
[1642188784069,91.5004,148.27,148.22,0.04]
[1642188784468,99.45117588,148.27,148.22,0.04]
[1642188784669,68.01,148.25,148.18,3.84725988]
[1642188784869,77.87,148.25,148.16,3.84725988]